[Event "American Cup Women Elimination 2023"]
[Site "Saint Louis"]
[Date "2023.03.19"]
[Round "2.1"]
[White "Pourkashiyan, Atousa"]
[Black "Zatonskih, Anna"]
[Result "1-0"]
[ECO "C10"]
[WhiteElo "2313"]
[BlackElo "2337"]
[Annotator "TA"]
[PlyCount "143"]
[EventDate "2023.03.15"]
[EventType "k.o."]
[EventCountry "USA"]
[SourceTitle "playchess.com"]
[Source "ChessBase"]
[SourceQuality "1"]
[TimeControl "1500+10"]

{[%evp 12,143,33,30,29,26,26,18,25,26,30,0,0,5,28,0,13,0,0,4,18,0,0,0,7,2,0,0,0,8,13,13,14,21,35,44,43,43,42,40,60,61,79,0,0,0,0,0,45,20,40,23,22,15,67,65,52,6,80,0,58,69,94,102,122,29,42,18,110,93,102,77,168,169,300,236,229,193,229,219,224,229,218,156,266,208,256,218,196,0,192,78,234,225,228,100,135,118,121,127,292,270,288,295,335,287,279,243,238,0,254,139,153,95,109,110,385,379,631,568,1091,1083,998,989,1112,1066,12839,870,12841,12841,12841,12841,12843,12843]} 1. e4 {[%emt 0:00:03]} e6 {[%emt 0:00:01]} 2. d4 {[%emt 0:00:02]} d5 {[%emt 0:00:02]} 3. Nc3 {[%emt 0:00:03]} dxe4 {[%emt 0:00:02]} 4. Nxe4 {[%emt 0:00:03]} Nd7 {[%emt 0:00:02][%cal Bb8d7,Bd7f6,Bf6d5,Bd5b4][%mdl 32]} 5. Nf3 {[%emt 0:00:16]} Ngf6 {[%emt 0:00:02]} 6. Nxf6+ {[%emt 0:00:08]} Nxf6 {[%emt 0:00:02]} 7. Be3 {[%emt 0:00:02]} Bd6 {[%emt 0:00:47] is recently more successful than 7...Be7. C10: French with 3 Nc3: Unusual Black 3rd moves and 3...dxe4.} 8. Bd3 {[%emt 0:00:12]} O-O {[%emt 0:00:04]} 9. Qe2 {[%emt 0:00:10]} b6 {[%emt 0:00:06] The position is equal.} 10. O-O-O {[%emt 0:00:09]} Bb7 {[%emt 0:00:01]} 11. Ne5 {[%emt 0:00:16]} Nd5 {[%emt 0:09:20]} 12. Bd2 {[%emt 0:06:01]} Nb4 {[%emt 0:00:09] [#]} (12... Qh4 {simplifies} 13. Nf3 Qh5 14. Be4 f5) 13. Be4 $146 {[%emt 0:02:50]} ({Predecessor:} 13. Bxb4 Bxb4 14. c3 Bd6 15. f4 g6 16. h4 Qf6 17. Rdf1 Rad8 18. h5 c5 19. Qg4 Kg7 20. hxg6 hxg6 21. f5 exf5 22. Rxf5 Bxe5 23. Rxf6 Bxf6 24. Qf4 {1-0 Fressinet,L (2656)-Marzolo,C (2474) FRA-chT Top 16 GpA 2008 (5)}) 13... Bxe4 {[%emt 0:01:08]} 14. Qxe4 {[%emt 0:00:05]} a5 {[%emt 0:04:03]} 15. a3 {[%emt 0:01:02]} Bxe5 {[%emt 0:06:42]} 16. Qxe5 {[%emt 0:01:52]} (16. dxe5 $5 {[%cal Rd2b4]} Qd5 17. Rhe1 $11) 16... Nc6 {[%emt 0:00:25][%csl LRd4,LRe5]} 17. Qe4 {[%emt 0:00:11]} Qd5 {[%emt 0:00:42]} (17... Qxd4 $2 18. Qxc6 Qxf2 19. Rhf1 $18) (17... Nxd4 18. Bf4 c5 19. c3 $16) 18. Qxd5 {[%emt 0:00:25]} exd5 {[%emt 0:00:01]} 19. Bf4 {[%emt 0:00:03]} Rac8 {[%emt 0:00:09]} 20. Rhe1 {[%emt 0:00:27]} Nd8 {[%emt 0:02:11] Black is weak on the dark squares} 21. g4 {[%emt 0:06:25]} Ne6 {[%emt 0:00:09]} 22. Bg3 {[%emt 0:00:02]} Rfd8 {[%emt 0:01:30]} 23. f4 {[%emt 0:01:31]} Rd7 {[%emt 0:00:29]} 24. Re5 {[%emt 0:02:21]} c6 {[%emt 0:00:24][%cal Bc7c6,Bc6c5][%mdl 32]} 25. h4 {[%emt 0:00:16]} Kf8 {[%emt 0:00:12]} 26. f5 {[%emt 0:00:23]} Nc7 {[%emt 0:00:02] [#]} 27. f6 {[%emt 0:00:44]} gxf6 $11 {[%emt 0:00:08]} 28. Rf5 {[%emt 0:00:01]} Ne8 {[%emt 0:00:07]} 29. Rdf1 {[%emt 0:02:25]} c5 {[%emt 0:00:01]} 30. Bf2 {[%emt 0:00:35]} Rc6 {[%emt 0:00:09]} 31. Be3 {[%emt 0:00:22]} Re6 {[%emt 0:00:33]} 32. Bh6+ {[%emt 0:00:28]} Kg8 {[%emt 0:00:02]} ({Black should try} 32... Ke7 $11) 33. dxc5 $14 {[%emt 0:00:23]} bxc5 {[%emt 0:00:02]} 34. b3 {[%emt 0:00:15]} (34. h5 $14 {was preferrable.}) 34... Re5 {[%emt 0:00:47]} (34... a4 $11) 35. R5f3 {[%emt 0:00:12]} (35. Bd2 $16) 35... Re6 {[%emt 0:00:04]} (35... a4 $11) 36. Bd2 {[%emt 0:00:10][%cal Oa3a4]} Ra6 {[%emt 0:00:07]} 37. a4 {[%emt 0:00:04]} Kg7 {[%emt 0:00:05]} 38. g5 {[%emt 0:00:15]} (38. Rf5 $16) 38... fxg5 $11 {[%emt 0:00:04]} 39. hxg5 {[%emt 0:00:01][%cal Bh4g5,Bg5g6,Bg6h7][%mdl 32]} d4 {[%emt 0:00:07]} (39... Nc7 $11) 40. Rh1 {[%emt 0:00:07]} Kg8 {[%emt 0:00:06][%cal Oc5c4]} 41. Rfh3 {[%emt 0:00:11]} f6 {[%emt 0:00:02] [#]} (41... f5 $16 {was necessary.}) 42. g6 $1 $18 {[%emt 0:00:15][%mdl 512]} Raa7 {[%emt 0:00:24]} (42... c4 $142 43. bxc4 (43. gxh7+ Kh8 $16) 43... Rc6) (42... hxg6 43. Rh8+) 43. gxh7+ {[%emt 0:00:13]} Kh8 {[%emt 0:00:05]} 44. Re1 {[%emt 0:00:17]} Ng7 {[%emt 0:00:10]} 45. Rh6 {[%emt 0:00:04]} Rf7 {[%emt 0:00:03]} 46. Rg1 {[%emt 0:00:06]} Ra8 {[%emt 0:00:08]} 47. Rf1 {[%emt 0:00:13]} Ne8 {[%emt 0:00:06]} (47... Ra6 $16 48. Kd1 Rf8) 48. Rh5 {[%emt 0:00:10]} Rc7 {[%emt 0:00:07]} 49. Rg1 {[%emt 0:00:12][%csl Gh7][%cal Rg1g8]} Ng7 {[%emt 0:00:08]} 50. Rh6 {[%emt 0:00:01]} Rf7 {[%emt 0:00:01]} 51. Rhg6 {[%emt 0:00:15]} (51. Rgg6 $18) 51... Raa7 $2 {[%emt 0:00:27]} (51... Kxh7 $16 {might work better.} 52. Rh6+ Kg8) 52. Rh1 {[%emt 0:00:12]} Ra8 {[%emt 0:00:13]} 53. Rg2 {[%emt 0:00:17]} (53. Rh4 $18 {has better winning chances.}) 53... Ne6 {[%emt 0:00:19]} 54. Rh5 {[%emt 0:00:06]} Rxh7 {[%emt 0:00:13]} 55. Rf5 {[%emt 0:00:01] White is more active.} Rg7 $2 {[%emt 0:00:13]} (55... d3 $16) 56. Rh2+ {[%emt 0:00:07]} Kg8 {[%emt 0:00:04]} 57. Rxf6 {[%emt 0:00:03]} Ng5 {[%emt 0:00:31]} 58. Rfh6 {[%emt 0:00:21] aiming for Rh8+.} Kf7 {[%emt 0:00:15]} 59. Rf2+ {[%emt 0:00:13]} Kg8 {[%emt 0:00:02]} 60. Rfh2 {[%emt 0:00:11] Hoping for Rh8+.} Kf7 $1 {[%emt 0:00:07]} 61. Rc6 {[%emt 0:00:05]} (61. Re2 $1 $18 {[%cal Re2e5]}) 61... Ne4 $16 {[%emt 0:00:04]} 62. Re2 {[%emt 0:00:21]} (62. Rc7+ $142 $1 Kg8 63. Rxg7+ Kxg7 64. Re2) 62... Rg1+ {[%emt 0:00:19] [#]} 63. Kb2 $1 {[%emt 0:00:01]} Re8 $2 {[%emt 0:00:17][%mdl 8192]} (63... Rg4 $16 {was worth a try.} 64. Be1 Rf4) 64. Bxa5 $18 {[%emt 0:00:09]} Nc3 $2 {[%emt 0:00:03] [#]} (64... Rg6) 65. Rf2+ $1 {[%emt 0:00:09] White is clearly winning.} (65. Bxc3 $2 {perishes.} dxc3+ 66. Kxc3 Rxe2 $19) 65... Kg7 {[%emt 0:00:18] ( -> ...Rb1+)} 66. Bxc3 {[%emt 0:00:02]} (66. Rxc5 $2 {is the wrong capture.} Nd1+ 67. Ka3 Nxf2 $19) 66... dxc3+ {[%emt 0:00:01]} 67. Kxc3 {[%emt 0:00:01] KRR-KRR} Re5 {[%emt 0:00:09]} 68. Rd2 {[%emt 0:00:10]} Rg3+ {[%emt 0:00:03]} 69. Kb2 {[%emt 0:00:03]} (69. Rd3 $142 Rg1 70. Rd7+ Kf8 71. Rc8+ Re8 72. Rxc5) 69... Kf7 {[%emt 0:00:04]} 70. Rd7+ {[%emt 0:00:08]} Ke8 {[%emt 0:00:06]} 71. Rh7 {[%emt 0:00:20][%cal Rc6c8]} Kd8 {[%emt 0:00:37] Prevents Rc8+.} 72. Ra6 {[%emt 0:00:08] Weighted Error Value: White=0.30/Black=0.26 (precise)} 1-0

[Event "American Cup Women Elimination 2023"]
[Site "Saint Louis"]
[Date "2023.03.21"]
[Round "2.2"]
[White "Pourkashiyan, Atousa"]
[Black "Tokhirjonova, Gulrukhbegim"]
[Result "0-1"]
[ECO "C42"]
[WhiteElo "2313"]
[BlackElo "2332"]
[Annotator "TA"]
[PlyCount "66"]
[EventDate "2023.03.15"]
[EventType "k.o."]
[EventCountry "USA"]
[SourceTitle "playchess.com"]
[Source "ChessBase"]
[SourceQuality "1"]
[TimeControl "1500+10"]

{[%evp 17,66,8,0,-1,7,-8,0,-36,-8,-33,21,-30,-8,-8,0,-7,0,0,16,0,-3,-109,-102,-110,-101,-118,-126,-143,-143,-200,-202,-222,-233,-218,-147,-237,-145,-247,-258,-586,-531,-29988,-29989,-29989,-233,-29990,-29991,-29993,-29992,-29997,-29998]} 1. e4 {[%emt 0:00:02]} e5 {[%emt 0:00:20]} 2. Nf3 {[%emt 0:00:02]} Nf6 {[%emt 0:00:02]} 3. Nxe5 {[%emt 0:00:03]} d6 {[%emt 0:00:02]} 4. Nf3 {[%emt 0:00:02]} Nxe4 {[%emt 0:00:03]} 5. Nc3 {[%emt 0:00:01]} Nxc3 {[%emt 0:00:07]} 6. dxc3 {[%emt 0:00:03]} Be7 {[%emt 0:00:02]} 7. Bf4 {[%emt 0:00:03]} Nd7 {[%emt 0:00:13][%cal Bb8d7,Bd7c5,Bc5e4][%mdl 32]} 8. Qd2 {[%emt 0:00:02]} O-O {[%emt 0:00:16] now supersedes 8...Nc5.} 9. O-O-O {[%emt 0:00:04]} Nc5 {[%emt 0:00:08]} 10. Kb1 {[%emt 0:00:30] C42: Petroff Defence: 3 Nxe5 and unusual White 3rd moves.} Re8 {[%emt 0:00:26]} 11. Be3 {[%emt 0:01:59]} (11. Bc4 {feels hotter.} Bf5 12. Be3 Bf6 13. Bxc5 dxc5 14. Qf4) 11... Ne4 {[%emt 0:02:53]} 12. Qe1 {[%emt 0:05:35] [#] The position is equal.} Bf8 $146 {[%emt 0:00:59]} ({Predecessor:} 12... Bf6 13. Nd4 Bg5 14. Bxg5 Nxg5 15. Be2 Ne6 {½-½ Bakre,T (2491)-Suvrajit,S (2395) IND-ch Visakhapatnam 2004 (5)}) 13. h4 {[%emt 0:00:33]} c6 {[%emt 0:01:03]} (13... Bg4 $15) 14. c4 {[%emt 0:01:34]} (14. Ng5 $142) 14... a6 {[%emt 0:00:48]} 15. Ng5 {[%emt 0:01:48]} h6 {[%emt 0:00:47]} 16. Nxe4 {[%emt 0:02:00]} Rxe4 {[%emt 0:00:02]} 17. f3 {[%emt 0:00:01]} Re8 {[%emt 0:00:11]} 18. Qf2 {[%emt 0:00:32]} b5 {[%emt 0:00:41]} 19. c5 {[%emt 0:00:27]} (19. Bd3 $11) 19... Qe7 $17 {[%emt 0:01:10][%csl LRc5,LRe3][%mdl 64] [#] Deflection} 20. Bc1 {[%emt 0:02:10]} dxc5 {[%emt 0:00:27][%cal Bd6c5,Bc5c4,Bc4c3][%mdl 32]} 21. g4 {[%emt 0:00:03]} c4 {[%emt 0:00:22]} 22. Bg2 {[%emt 0:01:07] [#]} Qc5 $1 {[%emt 0:01:50]} 23. Qg3 {[%emt 0:01:09]} (23. Qxc5 $17 {was worth a try.} Bxc5 24. Rhe1 Rxe1 25. Rxe1) 23... c3 $19 {[%emt 0:00:05] Hoping for ...cxb2.} 24. Rhe1 {[%emt 0:04:32]} Rxe1 {[%emt 0:00:58]} 25. Rxe1 {[%emt 0:00:10]} Bd7 {[%emt 0:01:10]} 26. g5 {[%emt 0:00:46]} (26. b3 $17) 26... h5 {[%emt 0:01:29] ...cxb2 is the strong threat.} 27. g6 {[%emt 0:00:02]} (27. b3 $17) 27... fxg6 {[%emt 0:00:33]} 28. Qxg6 $2 {[%emt 0:01:53]} (28. b3 {is tougher.}) 28... Bf5 {[%emt 0:00:05] White must now prevent ...cxb2.} 29. Qg3 {[%emt 0:00:25]} cxb2 {[%emt 0:00:24]} 30. Bxb2 {[%emt 0:00:03]} Qxc2+ {[%emt 0:00:07]} 31. Ka1 {[%emt 0:00:01]} Rd8 {[%emt 0:00:24][%cal Ba8d8,Bd8d2,Bd2d1][%mdl 32] Black mates.} 32. Qf4 {[%emt 0:01:38]} Rd2 {[%emt 0:00:16][%csl Gd2][%cal Rc2b2]} 33. Qe5 {[%emt 0:00:56]} Rd1+ {[%emt 0:00:03][%mdl 64] Back Rank. Artfully played by Tokhirjonova.   Weighted Error Value: White=0.70/Black=0.14 (very precise)} 0-1

[Event "American Cup Women Elimination 2023"]
[Site "Saint Louis"]
[Date "2023.03.19"]
[Round "2.2"]
[White "Abrahamyan, Tatev"]
[Black "Nemcova, Katerina"]
[Result "1-0"]
[ECO "B01"]
[WhiteElo "2294"]
[BlackElo "2325"]
[Annotator "TA"]
[PlyCount "107"]
[EventDate "2023.03.15"]
[EventType "k.o."]
[EventCountry "USA"]
[SourceTitle "playchess.com"]
[Source "ChessBase"]
[SourceQuality "1"]
[TimeControl "1500+10"]

{[%evp 11,107,22,29,7,16,8,14,20,16,-22,-30,-29,-24,-20,-21,-27,-5,-14,0,-21,-17,-25,-16,-27,0,-33,-40,-41,0,0,0,0,0,0,0,-21,-27,-23,0,-23,0,-72,-14,-21,-16,-23,-23,-63,-40,-33,-27,-53,-56,-54,-3,-10,0,0,0,0,0,0,0,0,17,17,17,0,0,0,0,0,0,0,0,0,0,0,0,0,64,-8,-8,-8,6875,2647,29978,29977,29963,29966,29981,29984,29984,29985,29985,29985,29984,29985]} 1. e4 {[%emt 0:00:03]} d5 {[%emt 0:00:01]} 2. exd5 {[%emt 0:00:04]} Qxd5 {[%emt 0:00:01]} 3. Nc3 {[%emt 0:00:05]} Qa5 {[%emt 0:00:02]} 4. d4 {[%emt 0:00:09]} Nf6 {[%emt 0:00:02]} 5. Nf3 {[%emt 0:00:25]} Bf5 {[%emt 0:00:22]} 6. Bc4 {[%emt 0:00:47]} e6 {[%emt 0:00:12]} 7. Bd2 {[%emt 0:00:26][%cal Oc3d5] Nd5! would be deadly. B01: Scandinavian Defence.} Bb4 {[%emt 0:00:07]} 8. a3 {[%emt 0:02:06]} Bxc3 {[%emt 0:00:11]} 9. Bxc3 {[%emt 0:00:01] The position is equal.} Qb6 {[%emt 0:00:01]} 10. Ne5 {[%emt 0:02:07]} Nc6 {[%emt 0:03:23]} 11. O-O {[%emt 0:04:55]} O-O {[%emt 0:03:43] 11...Nxe5 deserves study.} 12. Nxc6 {[%emt 0:01:52]} Qxc6 {[%emt 0:00:10]} 13. Bd3 {[%emt 0:00:34]} Be4 {[%emt 0:02:03] [#]} 14. f3 $146 {[%emt 0:00:59]} ({Predecessor:} 14. Bxe4 Nxe4 15. Qd3 Rfd8 16. Rfe1 Nf6 17. Bd2 Qd6 18. Be3 Ng4 19. g3 Qd5 20. Qe2 {0-1 Urbina Perez,J (2210)-Cornette,M (2545) Seville op 37th 2012 (5)}) 14... Bg6 {[%emt 0:00:55]} 15. Bxg6 {[%emt 0:03:24]} hxg6 {[%emt 0:00:03]} 16. Qd3 {[%emt 0:00:26]} Rfd8 {[%emt 0:00:02]} 17. Rfe1 {[%emt 0:00:02]} Rd5 {[%emt 0:00:34]} 18. Re5 {[%emt 0:01:21]} Rxe5 {[%emt 0:02:23]} 19. dxe5 {[%emt 0:00:03]} Nd5 {[%emt 0:00:06]} 20. Bd4 {[%emt 0:01:12]} Rd8 {[%emt 0:00:13] aiming for ...Nf4.} 21. Bf2 {[%emt 0:00:15] And now c4 would win.} Rd7 {[%emt 0:01:29][%cal Od5b4]} 22. Rd1 {[%emt 0:00:30]} (22. Bxa7 $2 Ne7 23. Qe2 b6 $19) 22... a5 {[%emt 0:01:47][%cal Ba7a5,Ba5a4][%mdl 32]} 23. b3 {[%emt 0:01:35]} a4 {[%emt 0:04:31]} 24. h3 {[%emt 0:01:03]} ({Of course not} 24. c4 Nb6 25. Qb1 axb3 26. Rxd7 Nxd7 27. Qxb3 Nxe5 $17) 24... Kf8 {[%emt 0:02:02]} 25. Kh2 {[%emt 0:01:00]} Ke8 {[%emt 0:01:06]} (25... Nb6 $5 {[%cal Rd7d3]} 26. Qe2 axb3 27. cxb3 Rxd1 28. Qxd1 Nd5 $11) 26. h4 {[%emt 0:01:04]} (26. Qe4 $11 {keeps the balance.}) 26... Nb6 {[%emt 0:01:35]} (26... Nf4 $17 27. Qxd7+ Qxd7 28. Rxd7 Kxd7) 27. Qe2 $11 {[%emt 0:00:21]} Rxd1 {[%emt 0:00:11]} 28. Qxd1 {[%emt 0:00:01][%mdl 4096] Endgame KQB-KQN} Nd7 {[%emt 0:00:00]} 29. Bg3 {[%emt 0:01:21]} Qc5 {[%emt 0:00:12]} 30. bxa4 {[%emt 0:00:46]} Qxa3 {[%emt 0:01:03]} ({Don't play} 30... Nxe5 31. Qa1 Nd7 32. Qxg7 $11) 31. Qb1 {[%emt 0:00:36]} b6 $1 {[%emt 0:00:14]} ({Much weaker is} 31... Qxa4 32. Qxb7 Qxc2 33. Qa8+ Ke7 34. Qh8 $11) 32. Qb5 {[%emt 0:00:16]} Qc5 {[%emt 0:00:09] Dodges Qc6} ({Black should play} 32... Qc3 $15) 33. c4 {[%emt 0:00:24]} Qxb5 {[%emt 0:01:12]} 34. axb5 {[%emt 0:00:01] KB-KN} Nc5 {[%emt 0:00:02]} 35. Be1 {[%emt 0:00:18]} Na4 {[%emt 0:00:15] Hoping for ...Nb2.} 36. Bf2 {[%emt 0:00:02]} Nb2 {[%emt 0:00:23]} 37. c5 {[%emt 0:00:01]} Nc4 {[%emt 0:00:12]} 38. cxb6 {[%emt 0:00:03]} cxb6 {[%emt 0:00:01]} 39. f4 {[%emt 0:00:06]} Kd7 {[%emt 0:00:04]} 40. g4 {[%emt 0:00:27]} Kc7 {[%emt 0:00:02]} 41. Be1 {[%emt 0:00:04]} Na3 {[%emt 0:00:09]} 42. Bb4 {[%emt 0:00:01]} Nxb5 {[%emt 0:00:03]} 43. Bf8 {[%emt 0:00:01]} Nd4 {[%emt 0:00:14]} 44. Bxg7 {[%emt 0:00:32]} b5 {[%emt 0:00:01]} 45. Bf8 {[%emt 0:00:07] Threatens to win with h5.} Ne2 {[%emt 0:00:34] [#]} ({Black should try} 45... Kd7 $11) 46. f5 {[%emt 0:00:14]} exf5 {[%emt 0:00:21]} 47. gxf5 {[%emt 0:00:15]} Nd4 {[%emt 0:00:18][%mdl 8192] [#] This costs Black the game.} (47... gxf5 $11 48. h5 Nf4) 48. e6 $1 $18 {[%emt 0:00:15][%mdl 576] Deflection} fxe6 {[%emt 0:00:15]} (48... f6 49. fxg6) 49. fxg6 {[%emt 0:00:02] White mates.} Nf5 {[%emt 0:00:04]} 50. h5 {[%emt 0:00:07]} Kd7 {[%emt 0:00:07]} 51. h6 {[%emt 0:00:08]} Nxh6 {[%emt 0:00:07]} 52. Bxh6 {[%emt 0:00:01]} Ke7 {[%emt 0:00:01]} 53. Bg5+ {[%emt 0:00:05]} Kf8 {[%emt 0:00:04] [#]} 54. Bf6 $1 {[%emt 0:00:01] Weighted Error Value: White=0.12 (very precise) /Black=0.24 (precise)} 1-0

[Event "American Cup Women Elimination 2023"]
[Site "Saint Louis"]
[Date "2023.03.21"]
[Round "2.2"]
[White "Abrahamyan, Tatev"]
[Black "Paikidze, Nazi"]
[Result "1/2-1/2"]
[ECO "B15"]
[WhiteElo "2294"]
[BlackElo "2314"]
[Annotator "TA"]
[PlyCount "100"]
[EventDate "2023.03.15"]
[EventType "k.o."]
[EventCountry "USA"]
[SourceTitle "playchess.com"]
[Source "ChessBase"]
[SourceQuality "1"]
[TimeControl "1500+10"]

{[%evp 10,100,36,11,12,20,32,2,27,21,22,11,14,18,13,17,15,8,18,0,49,47,54,33,27,27,29,10,25,0,0,0,8,0,0,0,0,0,0,-22,0,0,0,0,-1,-3,0,0,0,-24,-17,-20,-45,-39,0,0,0,0,0,0,0,-12,0,-60,0,-80,-60,-60,-60,-60,-60,-60,-60,-60,-60,-60,-60,-61,-60,-80,-60,-80,-60,-80,-60,-81,0,-80,0,-80,0,-80,0]} 1. e4 {[%emt 0:00:03]} c6 {[%emt 0:00:01]} 2. d4 {[%emt 0:00:02]} d5 {[%emt 0:00:03]} 3. Nd2 {[%emt 0:00:04]} dxe4 {[%emt 0:00:02]} 4. Nxe4 {[%emt 0:00:02]} Nf6 {[%emt 0:00:02]} 5. Nxf6+ {[%emt 0:00:10]} exf6 {[%emt 0:00:02]} 6. Be3 {[%emt 0:00:02]} Bd6 {[%emt 0:00:52] B15: Caro-Kann: 3 Nc3: 3...g6 and 3...dxe4 4 Nxe4 Nf6 5 Nxf6+ exf6.} 7. Bd3 {[%emt 0:00:05]} O-O {[%emt 0:01:21]} 8. Ne2 {[%emt 0:00:06]} Re8 {[%emt 0:00:54][%cal Oc8f5] The position is equal.} 9. O-O {[%emt 0:00:09]} Bg4 {[%emt 0:00:46]} 10. h3 {[%emt 0:01:46]} Bh5 {[%emt 0:00:03]} 11. c4 {[%emt 0:00:41]} Nd7 {[%emt 0:00:05]} 12. Qc2 {[%emt 0:00:19] [#]} Nf8 $146 {[%emt 0:00:37]} ({Predecessor:} 12... Bg6 13. Rfd1 Rc8 14. Bxg6 hxg6 15. c5 Bb8 16. Qc4 g5 17. d5 cxd5 18. Qxd5 Qc7 19. Qxd7 {1-0 Pallie,E (1533)-Vithanawasam,O (1345) SRI-ch (Women) 2021 (13)}) 13. Rfe1 {[%emt 0:04:16]} Qc7 {[%emt 0:01:34]} 14. c5 {[%emt 0:00:54]} Be7 {[%emt 0:01:35]} (14... Bh2+ $11 {might be stronger.} 15. Kh1 Bxe2 16. Rxe2 (16. Qxe2 Bf4 $11) 16... Bf4) 15. Nf4 $14 {[%emt 0:00:33]} Bg6 {[%emt 0:00:06]} 16. b4 {[%emt 0:02:54]} (16. d5 $5 cxd5 17. Nxd5 $14) 16... Bxd3 {[%emt 0:02:21]} 17. Qxd3 {[%emt 0:00:35]} Ne6 {[%emt 0:03:21]} 18. Qf5 {[%emt 0:05:11]} g6 {[%emt 0:04:52]} 19. Qg4 {[%emt 0:00:54]} Nxf4 {[%emt 0:00:56]} 20. Bxf4 {[%emt 0:00:08]} Qd8 {[%emt 0:01:03]} 21. Rad1 {[%emt 0:03:06][%cal Od4d5]} Bf8 {[%emt 0:01:35]} 22. Rxe8 {[%emt 0:01:47]} Qxe8 {[%emt 0:00:01]} 23. d5 {[%emt 0:00:04]} cxd5 {[%emt 0:00:07]} 24. Qf3 {[%emt 0:00:09]} Rd8 {[%emt 0:00:43]} 25. Be3 {[%emt 0:00:10]} Qe6 {[%emt 0:00:45]} 26. Bd4 {[%emt 0:00:05]} f5 {[%emt 0:01:00]} 27. Qc3 {[%emt 0:01:16]} Qc6 {[%emt 0:00:01]} 28. a4 {[%emt 0:01:48]} a6 {[%emt 0:00:29]} 29. Qb3 {[%emt 0:00:21]} Bg7 {[%emt 0:00:28]} 30. b5 {[%emt 0:00:04]} axb5 {[%emt 0:00:19]} 31. axb5 {[%emt 0:00:01]} Qe6 {[%emt 0:00:12] [#] ...Bxd4 would be deadly.} 32. Qb2 {[%emt 0:01:03]} Bxd4 {[%emt 0:00:10]} 33. Qxd4 $11 {[%emt 0:00:03][%mdl 4096] Endgame KQR-KQR} Qd7 {[%emt 0:00:47]} 34. Rb1 {[%emt 0:00:12]} Qe6 {[%emt 0:00:48]} 35. Rc1 {[%emt 0:00:16]} Rc8 {[%emt 0:00:14]} 36. Qc3 {[%emt 0:00:34]} (36. f3 $11) 36... Qe8 {[%emt 0:00:34]} (36... Qe4 $15) 37. Qb3 {[%emt 0:00:28]} (37. b6 $1 $11) 37... Qd7 {[%emt 0:00:40]} 38. Qa4 {[%emt 0:00:05]} d4 {[%emt 0:00:11]} 39. c6 {[%emt 0:00:26]} bxc6 {[%emt 0:00:01]} 40. bxc6 {[%emt 0:00:08]} Qd6 {[%emt 0:00:27]} 41. Rd1 {[%emt 0:00:44]} Qxc6 {[%emt 0:00:14]} (41... d3 {is interesting.} 42. Qc4 d2 43. Qc3 Rxc6 44. Qxd2 Qxd2 45. Rxd2 Rc3) 42. Qxd4 {[%emt 0:00:01]} Qe6 {[%emt 0:00:09]} 43. h4 {[%emt 0:00:17]} h5 {[%emt 0:00:05]} 44. Qf4 {[%emt 0:00:06]} Re8 {[%emt 0:00:14]} 45. Qg5 {[%emt 0:00:13]} Qe7 {[%emt 0:00:15]} 46. Qf4 {[%emt 0:00:01]} Qe5 {[%emt 0:00:23]} 47. Qg5 {[%emt 0:00:08]} Qe7 {[%emt 0:00:01]} 48. Qf4 $1 {[%emt 0:00:02]} Qe5 {[%emt 0:00:01]} 49. Qg5 {[%emt 0:00:01]} Qe7 {[%emt 0:00:01]} 50. Qf4 $1 {[%emt 0:00:01]} Qe5 {[%emt 0:00:04] Weighted Error Value: White=0.11 (very precise) /Black=0.13 (very precise)} ({Black should try} 50... Qf6 $17 51. g3 Re4) 1/2-1/2